No of Trans,Dept Family,Entity Name,Cert/ Date,Supplier Name,Reference,Gross,Group/Department,Type of Expenditure - Subjective Codes
1,DCMS,EH,03/11/2010,Raymond Brown Construction Ltd,0000789760,"76,082.61",Properties and Education Group - Site Conservation Programme,OPERATIONAL COSTS Works for Heritage Buildings
2,DCMS,EH,03/11/2010,E Bowman and Sons Ltd,0000790597,"71,086.15",Planning & Development Group - P&D Group Projects,OPERATIONAL COSTS Works for Heritage Buildings
3,DCMS,EH,05/11/2010,Oxford Archaeology North,0000791188,"30,338.50",Properties and Education Group - Site Conservation Programme,OPERATIONAL COSTS Excavation Costs
4,DCMS,EH,05/11/2010,A & O Systems & Services Ltd,0000791342,"5,536.99",Resources Group - ICT Dept,NET WIP MOVEMENT WIP Asset Purch Under 10k
5,DCMS,EH,05/11/2010,A & O Systems & Services Ltd,0000791342,"16,322.32",Resources Group - ICT Dept,NET WIP MOVEMENT WIP Asset Purch Under 10k
6,DCMS,EH,05/11/2010,A & O Systems & Services Ltd,0000791342,"16,325.23",Resources Group - ICT Dept,NET WIP MOVEMENT WIP Asset Purch Under 10k
7,DCMS,EH,05/11/2010,A & O Systems & Services Ltd,0000791342,980.55,Resources Group - ICT Dept,NET WIP MOVEMENT WIP Asset Purch Under 10k
8,DCMS,EH,05/11/2010,A & O Systems & Services Ltd,0000791342,"2,890.03",Resources Group - ICT Dept,NET WIP MOVEMENT WIP Asset Purch Under 10k
9,DCMS,EH,05/11/2010,A & O Systems & Services Ltd,0000791342,"4,876.94",Resources Group - ICT Dept,NET WIP MOVEMENT WIP Asset Purch Under 10k
10,DCMS,EH,05/11/2010,A & O Systems & Services Ltd,0000791342,"1,645.00",Resources Group - ICT Dept,NET WIP MOVEMENT WIP Asset Purch Under 10k
11,DCMS,EH,05/11/2010,Atos Origin IT Services UK Ltd,0000791576,"134,498.77",Resources Group - ICT Dept,RUNNING COSTS ITFM
12,DCMS,EH,05/11/2010,Atos Origin IT Services UK Ltd,0000791578,"1,077,269.75",Resources Group - ICT Dept,RUNNING COSTS ITFM
13,DCMS,EH,05/11/2010,Archaeological Research Services,0000791611,"32,000.00",Conservation & Protection Group - Strategy Dept,ENABLING PROGRAMMES Hist Environ Prog Projects Gra
14,DCMS,EH,05/11/2010,Historic Property Restoration Ltd,0000791624,"1,076.70",Properties and Education Group - Property Maintenance Programme,OPERATIONAL COSTS Annual Cyclical Works-Building
15,DCMS,EH,05/11/2010,Historic Property Restoration Ltd,0000791624,"2,014.92",Properties and Education Group - Property Maintenance Programme,OPERATIONAL COSTS Leased Accomodation Maint
16,DCMS,EH,05/11/2010,Historic Property Restoration Ltd,0000791624,"19,898.11",Properties and Education Group - Property Maintenance Programme,OPERATIONAL COSTS Annual Cyclical Work M & E
17,DCMS,EH,05/11/2010,Historic Property Restoration Ltd,0000791624,"6,571.89",Properties and Education Group - Property Maintenance Programme,OPERATIONAL COSTS Annual Cyclical Works-Building
18,DCMS,EH,05/11/2010,Historic Property Restoration Ltd,0000791624,530.65,Properties and Education Group - Property Maintenance Programme,OPERATIONAL COSTS Annual Cyclical Work M & E
19,DCMS,EH,16/11/2010,Linford-Bridgeman Ltd,0000791743,"82,401.16",Planning & Development Group - P&D Group Projects,OPERATIONAL COSTS Works for Heritage Buildings
20,DCMS,EH,08/11/2010,C T Jackson Ltd,0000791760,"28,200.00",Properties and Education Group - Property Maintenance Programme,OPERATIONAL COSTS Responsive Repairs M & E
21,DCMS,EH,17/11/2010,Scion Estates Ltd,0000791944,"34,308.52",Properties and Education Group - Operations Dept,OPERATIONAL COSTS Materials
22,DCMS,EH,15/11/2010,Rodney Melville and Partners,0000792038,"35,250.00",Planning & Development Group - P&D Group Projects,OPERATIONAL COSTS Commissioned architects
23,DCMS,EH,15/11/2010,Gillards Worldwide,0000792073,"51,599.21",Properties and Education Group - Retail Dept,OPERATIONAL COSTS Storage & warehousing
24,DCMS,EH,17/11/2010,Recclesia Ltd,0000792192,"30,754.45",Properties and Education Group - Site Conservation Programme,OPERATIONAL COSTS Works for Heritage Buildings
25,DCMS,EH,15/11/2010,Seven Squared Ltd,0000792254,"50,674.37",Properties and Education Group - Marketing Dept,SALES & PROMOTIONS Promotional Material
26,DCMS,EH,15/11/2010,Seven Squared Ltd,0000792255,"117,500.00",Properties and Education Group - Marketing Dept,SALES & PROMOTIONS Promotional Material
27,DCMS,EH,10/11/2010,Enterprise Rent A Car UK Ltd,0000792338,"31,467.93",Corporate - Corporate Centre,RUNNING COSTS Car Hire
28,DCMS,EH,26/11/2010,Seazone Solutions Ltd,0000792720,"29,999.99",Conservation & Protection Group - Strategy Dept,ENABLING PROGRAMMES Hist Environ Prog Projects Gra
29,DCMS,EH,26/11/2010,R H Partnership Architects,0000792802,"10,867.58",Properties and Education Group - Property Investment Programme,OPERATIONAL COSTS Commissioned architects
30,DCMS,EH,26/11/2010,R H Partnership Architects,0000792802,"33,605.00",Properties and Education Group - Property Investment Programme,OPERATIONAL COSTS Commissioned architects
31,DCMS,EH,26/11/2010,R H Partnership Architects,0000792802,"4,974.94",Properties and Education Group - Property Investment Programme,OPERATIONAL COSTS Commissioned architects
32,DCMS,EH,26/11/2010,R H Partnership Architects,0000792802,"5,287.50",Properties and Education Group - Property Investment Programme,OPERATIONAL COSTS Commissioned architects
33,DCMS,EH,17/11/2010,Mail Marketing Scotland Ltd,0000792819,"32,001.14",Properties and Education Group - Marketing Dept,RUNNING COSTS Postage & Couriers
34,DCMS,EH,23/11/2010,E A Chiverton Ltd,0000793114,"34,163.95",Conservation & Protection Group - Administrative Estates Dept,OPERATIONAL COSTS Planned Maintenance
35,DCMS,EH,23/11/2010,Bond Pearce,0000793170,"26,430.78",Resources Group - ICT Dept,RUNNING COSTS Legal fees
36,DCMS,EH,26/11/2010,Ellis and Co Rest and Bldg Ltd,0000793734,"31,722.71",Properties and Education Group - Site Conservation Programme,OPERATIONAL COSTS Works for Heritage Buildings
37,DCMS,EH,26/11/2010,Treasure and Son,0000793750,"26,878.03",Properties and Education Group - Site Conservation Programme,OPERATIONAL COSTS Works for Heritage Buildings
38,DCMS,EH,04/11/2010,Colchester Borough Council,0081001214,"61,990.61",Conservation & Protection Group - Strategy Dept,ENABLING PROGRAMMES Hist Environ Prog Storage Gran
39,DCMS,EH,04/11/2010,Institute Of Field Archaeologists,0081001217,"25,000.00",Conservation & Protection Group - Strategy Dept,ENABLING PROGRAMMES Historic Environ Prog Grants
40,DCMS,EH,01/11/2010,Lewes Priory Trust,0090510247,"37,200.00",Planning & Development Group - Southern Territory,GRANTS PAYABLE - HISTORIC BUILDINGS
41,DCMS,EH,01/11/2010,St Matthews PCC Winchester,0090510248,"29,250.00",Planning & Development Group - Southern Territory,GRANTS PAYABLE - PLACES OF WORSHIP
42,DCMS,EH,01/11/2010,PCC of Sandwich,0090510249,"40,050.00",Planning & Development Group - Southern Territory,GRANTS PAYABLE - PLACES OF WORSHIP
43,DCMS,EH,01/11/2010,Longholme Methodist Church,0090510254,"94,000.00",Planning & Development Group - Northern Territory,GRANTS PAYABLE - PLACES OF WORSHIP
44,DCMS,EH,01/11/2010,Denham PCC,0090510263,"40,000.00",Planning & Development Group - Eastern Territory,GRANTS PAYABLE - PLACES OF WORSHIP
45,DCMS,EH,08/11/2010,Langley PCC,0090510266,"16,200.00",Planning & Development Group - Eastern Territory,GRANTS PAYABLE - PLACES OF WORSHIP
46,DCMS,EH,08/11/2010,Langley PCC,0090510266,"45,000.00",Planning & Development Group - Eastern Territory,GRANTS PAYABLE - PLACES OF WORSHIP
47,DCMS,EH,15/11/2010,Swine and Ellerby PCC,0090510271,"45,000.00",Planning & Development Group - Northern Territory,GRANTS PAYABLE - PLACES OF WORSHIP
48,DCMS,EH,08/11/2010,St Walburges Parish,0090510275,"57,500.00",Planning & Development Group - Northern Territory,GRANTS PAYABLE - PLACES OF WORSHIP
49,DCMS,EH,08/11/2010,City Centre Parish Canterbury PCC,0090510280,"37,679.00",Planning & Development Group - Southern Territory,GRANTS PAYABLE - PLACES OF WORSHIP
50,DCMS,EH,08/11/2010,Friends of Soulbury Church,0090510281,"34,500.00",Planning & Development Group - Southern Territory,GRANTS PAYABLE - PLACES OF WORSHIP
51,DCMS,EH,08/11/2010,Chilton Cantelo PCC,0090510286,"50,850.00",Planning & Development Group - Western Territory,GRANTS PAYABLE - PLACES OF WORSHIP
52,DCMS,EH,08/11/2010,High Oak PCC,0090510290,"38,000.00",Planning & Development Group - Eastern Territory,GRANTS PAYABLE - PLACES OF WORSHIP
53,DCMS,EH,10/11/2010,St Johns PCC Leytonstone,0090510295,"48,000.00",Planning & Development Group - Southern Territory,GRANTS PAYABLE - PLACES OF WORSHIP
54,DCMS,EH,10/11/2010,Natural England,0090510301,"33,750.00",Planning & Development Group - Western Territory,GRANTS PAYABLE - HISTORIC BUILDINGS
55,DCMS,EH,10/11/2010,St Mary The Virgin PCC Hereford,0090510304,"29,250.00",Planning & Development Group - Western Territory,GRANTS PAYABLE - PLACES OF WORSHIP
56,DCMS,EH,15/11/2010,Swine and Ellerby PCC,0090510305,"38,000.00",Planning & Development Group - Northern Territory,GRANTS PAYABLE - PLACES OF WORSHIP
57,DCMS,EH,15/11/2010,Swine and Ellerby PCC,0090510305,"43,900.00",Planning & Development Group - Northern Territory,GRANTS PAYABLE - PLACES OF WORSHIP
58,DCMS,EH,15/11/2010,Chelmorton with Flagg PCC,0090510310,"39,500.00",Planning & Development Group - Eastern Territory,GRANTS PAYABLE - PLACES OF WORSHIP
59,DCMS,EH,17/11/2010,All Saints Roos PCC,0090510319,"11,500.00",Planning & Development Group - Northern Territory,GRANTS PAYABLE - PLACES OF WORSHIP
60,DCMS,EH,17/11/2010,All Saints Roos PCC,0090510319,"14,000.00",Planning & Development Group - Northern Territory,GRANTS PAYABLE - PLACES OF WORSHIP
61,DCMS,EH,17/11/2010,Eye Town Hall Improvements Ltd,0090510321,"43,500.00",Planning & Development Group - Eastern Territory,GRANTS PAYABLE - HISTORIC BUILDINGS
62,DCMS,EH,17/11/2010,Hedon PCC,0090510323,"20,000.00",Planning & Development Group - Northern Territory,GRANTS PAYABLE - PLACES OF WORSHIP
63,DCMS,EH,17/11/2010,Hedon PCC,0090510323,"25,000.00",Planning & Development Group - Northern Territory,GRANTS PAYABLE - PLACES OF WORSHIP
64,DCMS,EH,17/11/2010,PCC of Slapton,0090510339,"33,690.00",Planning & Development Group - Southern Territory,GRANTS PAYABLE - PLACES OF WORSHIP
65,DCMS,EH,17/11/2010,St Swithuns PCC East Retford,0090510345,"29,932.00",Planning & Development Group - Eastern Territory,GRANTS PAYABLE - PLACES OF WORSHIP
66,DCMS,EH,22/11/2010,Cotton PCC,0090510348,"54,500.00",Planning & Development Group - Eastern Territory,GRANTS PAYABLE - PLACES OF WORSHIP
67,DCMS,EH,22/11/2010,St Johns Truro PCC,0090510350,"89,251.00",Planning & Development Group - Western Territory,GRANTS PAYABLE - PLACES OF WORSHIP
68,DCMS,EH,22/11/2010,Alderley Edge Methodist Church,0090510352,"94,500.00",Planning & Development Group - Northern Territory,GRANTS PAYABLE - PLACES OF WORSHIP
69,DCMS,EH,22/11/2010,St John The Baptist Tuebrook PCC,0090510353,"42,500.00",Planning & Development Group - Northern Territory,GRANTS PAYABLE - PLACES OF WORSHIP
70,DCMS,EH,22/11/2010,The Berkswell Windmill,0090510356,"23,572.00",Planning & Development Group - Western Territory,GRANTS PAYABLE - HISTORIC BUILDINGS
71,DCMS,EH,22/11/2010,The Berkswell Windmill,0090510356,"10,500.00",Planning & Development Group - Western Territory,GRANTS PAYABLE - HISTORIC BUILDINGS
72,DCMS,EH,22/11/2010,PCC of Snitterfield Parish,0090510358,"29,500.00",Planning & Development Group - Western Territory,GRANTS PAYABLE - PLACES OF WORSHIP
73,DCMS,EH,22/11/2010,Huddersfield Parish Council,0090510365,"85,000.00",Planning & Development Group - Northern Territory,GRANTS PAYABLE - PLACES OF WORSHIP
74,DCMS,EH,22/11/2010,PCC of St Leonard Shoreditch,0090510366,"92,000.00",Planning & Development Group - Southern Territory,GRANTS PAYABLE - PLACES OF WORSHIP
75,DCMS,EH,22/11/2010,St John The Baptist Nettleton PCC,0090510368,"26,500.00",Planning & Development Group - Eastern Territory,GRANTS PAYABLE - PLACES OF WORSHIP
76,DCMS,EH,24/11/2010,PCC of St John's the Evangelist,0090510383,"36,500.00",Planning & Development Group - Western Territory,GRANTS PAYABLE - PLACES OF WORSHIP
77,DCMS,EH,24/11/2010,St Michaels Bishop Itchington PCC,0090510384,"40,250.00",Planning & Development Group - Western Territory,GRANTS PAYABLE - PLACES OF WORSHIP
78,DCMS,EH,29/11/2010,Harlaxton PCC,0090510388,"36,000.00",Planning & Development Group - Eastern Territory,GRANTS PAYABLE - PLACES OF WORSHIP
79,DCMS,EH,29/11/2010,Holy Trinity Shaw PCC,0090510389,"45,900.00",Planning & Development Group - Northern Territory,GRANTS PAYABLE - PLACES OF WORSHIP
80,DCMS,EH,29/11/2010,Ashton Under Lyne St Peters Church,0090510391,"27,000.00",Planning & Development Group - Northern Territory,GRANTS PAYABLE - PLACES OF WORSHIP
81,DCMS,EH,29/11/2010,St Botolph PCC,0090510395,"54,000.00",Planning & Development Group - Southern Territory,GRANTS PAYABLE - PLACES OF WORSHIP
82,DCMS,EH,29/11/2010,Howden Minster PCC,0090510399,"69,750.00",Planning & Development Group - Northern Territory,GRANTS PAYABLE - PLACES OF WORSHIP
